bitfinex/quotes_ETHUSD_20240902
["timestamp","ask_amount","ask_price","bid_price","bid_amount"]
[1725248848223,2.85107,2455.3,2454.7,0.340187]
[1725248848430,2.85109,2455.2,2454.8,0.55]
[1725248848797,2.85107,2455.3,2454.7,0.55]
[1725248848994,2.85077,2455.5,2454.8,2.85154]
[1725248849448,2.85077,2455.5,2454.9,2.9328916]
[1725248849626,5.34625,2455.7,2454.9,0.6314616]
[1725248849627,2.85055,2455.7,2454.9,0.6314616]
[1725248849839,5.7007,2455.9,2455.2,2.85097]
[1725248850139,0.50002094,2456.3,2455.5,2.85073]
[1725248850140,2.85008,2456.1,2455.5,2.85073]
[1725248850309,5.20615,2456.3,2455.6,0.91651135]
[1725248850515,5.20615,2456.3,2455.6,0.63143835]
[1725248851045,2.85036,2455.9,2455.6,0.55]
[1725248851245,2.85036,2455.9,2455.4,0.55]
[1725248851246,3.135396,2455.9,2455.4,0.55]
[1725248851542,2.85036,2455.9,2455.4,0.55]
[1725248852782,2.85036,2455.9,2455.2,0.55]
[1725248852965,2.85036,2455.9,2455.3,0.340114]
[1725248853131,2.85036,2455.9,2455.4,0.55]
[1725248853782,2.85014,2456.1,2455.4,0.55]
[1725248854136,2.85014,2456.1,2455.4,3.40085]
[1725248854782,2.8497,2456.4,2455.7,2.85041]
[1725248854988,2.8497,2456.4,2455.8,0.6314291]
[1725248855482,2.8497,2456.4,2455.8,0.55]
[1725248855649,2.84964,2456.5,2455.8,0.63142911]
[1725248855988,2.84999,2456.2,2455.6,2.3743]
[1725248856141,2.84999,2456.2,2455.7,0.55]
[1725248856616,0.50002094,2456.1,2455.3,2.756414]
[1725248856744,2.8507,2455.6,2455.0,2.4163]
[1725248857449,2.8507,2455.6,2455.0,5.26754]
[1725248857650,2.8507,2455.6,2455.0,6.079429]
[1725248857965,5.70094,2455.8,2455.1,0.55]
[1725248858159,2.85052,2455.7,2455.1,0.55]
[1725248858484,2.85047,2455.8,2455.1,3.40119]
[1725248858691,2.85047,2455.8,2455.1,4.3492679]
[1725248858891,2.85047,2455.8,2455.1,7.2003679]
[1725248859185,2.85047,2455.8,2455.1,4.3491779]
[1725248859971,2.85047,2455.8,2455.2,2.85107]
[1725248860169,5.16227,2456.0,2455.3,3.48240747]
[1725248860380,5.84998,2456.2,2455.4,2.2953]
[1725248860381,3.0,2456.2,2455.4,2.2953]
[1725248860580,3.0,2456.2,2455.7,2.8505]
[1725248860897,3.0,2456.3,2455.7,2.93192986]
[1725248861103,3.0,2456.3,2455.8,0.55]
[1725248861307,2.85017,2456.0,2455.4,2.2953]
[1725248861515,3.35003094,2456.2,2455.5,0.55]
[1725248861805,6.20007094,2456.2,2455.5,3.40074]
[1725248862103,6.20007094,2456.2,2455.5,4.255433]
[1725248862475,2.85005,2456.1,2455.5,4.255433]
[1725248863699,2.85016,2456.0,2455.5,1.404693]
[1725248863908,2.85016,2456.0,2455.5,0.55]
[1725248864903,5.70043,2456.0,2455.5,0.55]
[1725248865111,5.70043,2456.0,2455.4,0.55]
[1725248865315,2.85027,2455.9,2455.4,0.55]
[1725248867018,5.70041,2456.0,2455.4,0.55]
[1725248867220,2.85016,2456.0,2455.4,0.55]
[1725248867389,2.85016,2456.0,2455.4,1.125208]
[1725248868603,2.85016,2456.0,2455.4,3.976028]
[1725248868920,2.85016,2456.0,2455.4,3.976058]
[1725248869285,2.85016,2456.0,2455.4,1.125208]
[1725248871019,2.85016,2456.0,2455.4,3.976058]
[1725248871427,2.85016,2456.0,2455.4,1.125208]
[1725248871643,2.85016,2456.0,2455.4,0.55]
[1725248872652,2.85039,2455.9,2455.4,0.55]
[1725248872860,2.85039,2455.9,2455.2,8.63676306]
[1725248872861,2.8507,2455.6,2455.2,8.63676306]
[1725248873148,2.8507,2455.6,2455.2,2.3512]
[1725248873749,2.8507,2455.6,2455.0,12.37]
[1725248874247,2.8507,2455.6,2455.1,0.55]
[1725248874446,2.85045,2455.8,2455.2,2.85105]
[1725248874769,2.84973,2456.4,2455.4,3.31103099]
[1725248874951,2.84973,2456.4,2455.7,2.85044]
[1725248875111,2.84973,2456.4,2455.8,0.08143003]
[1725248875518,2.84973,2456.4,2455.8,2.93182003]
[1725248875743,2.84949,2456.6,2455.9,6.253596]
[1725248875959,5.30717,2456.8,2456.0,2.93152235]
[1725248876288,3.34908094,2457.0,2456.1,3.40004]
[1725248876289,2.849,2457.0,2456.1,3.40004]
[1725248876419,3.34935094,2456.8,2456.1,1.46851184]
[1725248876618,3.34935094,2456.8,2456.1,4.39993822]
[1725248876860,2.84907,2457.0,2456.2,2.84989]
[1725248877069,2.84907,2457.0,2456.3,0.63141397]
[1725248877556,2.84907,2457.0,2456.3,2.8251]
[1725248877763,3.0,2456.9,2456.3,2.90651306]
[1725248878119,2.84907,2457.0,2456.3,5.75632306]
[1725248878359,2.84907,2457.0,2456.4,0.57563231]
[1725248879320,2.84907,2457.0,2456.3,5.67491]
[1725248879321,2.84913,2456.9,2456.3,2.8251]
[1725248879554,2.84926,2456.8,2456.0,2.2751]
[1725248879727,2.84926,2456.8,2456.1,0.512535]
[1725248879933,2.84955,2456.6,2456.0,2.2751]
[1725248881372,2.84925,2456.8,2456.1,2.84995]
[1725248881522,2.84937,2456.7,2456.0,2.2751]
[1725248881928,2.84966,2456.5,2456.0,2.2751]
[1725248882176,2.84937,2456.7,2456.0,2.2751]
[1725248882463,2.84937,2456.7,2456.0,5.12524]
[1725248882667,2.84937,2456.7,2456.0,5.20665995]
[1725248882958,2.84937,2456.7,2456.1,0.805691]
[1725248883527,2.84917,2456.9,2456.1,0.805691]
[1725248883528,2.84917,2456.9,2456.2,0.63142004]
[1725248883771,2.84917,2456.9,2456.2,3.48125004]
[1725248884265,2.84917,2456.9,2456.3,0.08141564]
[1725248884518,2.84917,2456.9,2456.3,0.43683567]
[1725248885059,5.67506094,2457.1,2456.3,0.43683567]
[1725248885060,5.67506094,2457.1,2456.4,2.84965]
[1725248885259,3.0,2457.0,2456.4,5.33885]
[1725248885893,0.50002094,2457.1,2456.6,2.84945]
[1725248886176,2.84868,2457.3,2456.6,2.84945]
[1725248886705,2.84868,2457.3,2456.7,2.4697]
[1725248886908,3.418393,2457.3,2456.7,2.4697]
[1725248887263,2.84896,2457.1,2456.4,5.31931]
[1725248887612,0.50002094,2457.0,2456.0,5.31978]
[1725248887914,2.84944,2456.7,2456.0,2.4697]
[1725248888126,3.78491694,2457.0,2455.5,0.91363631]
[1725248888127,6.34950094,2456.6,2455.7,2.4697]
[1725248888263,5.1106,2456.4,2455.7,2.4697]
[1725248888456,3.0,2456.5,2455.8,2.85033]
[1725248888700,0.80463007,2456.5,2455.7,5.99684385]
[1725248888908,0.38046301,2456.4,2455.7,2.4697]
[1725248889206,0.80687875,2456.4,2455.7,2.4697]
[1725248889912,0.80687875,2456.4,2455.6,2.85059]
[1725248890060,0.80687875,2456.4,2455.7,2.85048]
[1725248890740,0.80687875,2456.4,2455.8,2.85035]
[1725248890897,0.42641574,2456.4,2455.9,5.31997]
[1725248891095,0.42641574,2456.4,2455.9,5.86997]
[1725248891666,0.42641574,2456.4,2456.2,2.84992]
[1725248891997,0.42641574,2456.4,2456.3,2.84981]
[1725248892196,0.42641574,2456.4,2456.3,3.419783]
[1725248892944,0.42641574,2456.4,2456.3,6.269593]
[1725248893122,0.42641574,2456.4,2456.3,5.69962]
[1725248893825,0.42641574,2456.4,2456.3,11.01913]
[1725248894126,0.42641574,2456.4,2456.3,14.41894]
[1725248894442,0.42641574,2456.4,2456.3,21.83079579]
[1725248894642,0.42641574,2456.4,2456.3,24.01387537]
[1725248895505,2.2609,2457.6,2457.2,2.84869]
[1725248895699,2.2609,2457.6,2456.8,9.13479306]
[1725248895919,3.77475017,2457.5,2456.8,9.13479306]
[1725248896148,0.60356502,2457.4,2456.9,2.84908]
[1725248896306,0.60356502,2457.4,2456.8,9.13479306]
[1725248897145,3.45211502,2457.4,2456.8,9.13479306]
[1725248897455,3.45211502,2457.4,2456.8,6.28556306]
[1725248897456,2.2609,2457.3,2456.8,6.28556306]
[1725248897744,2.2609,2457.3,2456.8,9.13470306]
[1725248898605,2.2609,2457.3,2457.0,2.84899]
[1725248899334,0.60356502,2457.4,2457.0,2.84899]
[1725248899757,0.60356502,2457.4,2456.8,9.13470306]
[1725248900047,0.60356502,2457.4,2456.8,2.84914]
[1725248901047,0.68783543,2457.3,2456.8,2.84914]
[1725248901363,0.68783543,2457.3,2456.6,2.84941]
[1725248901364,2.4644,2457.2,2456.6,2.84941]
[1725248901523,2.4644,2457.2,2456.6,5.69879]
[1725248902202,2.4644,2457.2,2456.6,2.84938]
[1725248902402,3.06448954,2457.2,2456.6,2.84938]
[1725248902604,3.06448954,2457.2,2456.8,2.84922]
[1725248902833,6.27478923,2457.5,2456.8,2.84922]
[1725248903029,8.73918923,2457.5,2456.8,2.84922]
[1725248904032,8.73918923,2457.5,2456.9,2.84903]
[1725248904237,5.89069923,2457.5,2456.8,2.84922]
[1725248904557,5.89069923,2457.5,2457.0,2.84898]
[1725248904759,5.89069923,2457.5,2457.0,5.69789]
[1725248905051,5.89069923,2457.5,2457.0,2.84891]
[1725248905204,5.89069923,2457.5,2456.8,6.227522]
[1725248905418,9.61301815,2457.5,2456.8,2.84915]
[1725248905817,9.61301815,2457.5,2456.9,2.8491]
[1725248906031,8.73912923,2457.5,2456.9,2.8491]
[1725248906434,5.89069923,2457.5,2456.9,2.8491]
[1725248907627,2.84865,2457.3,2456.6,2.84938]
[1725248907813,5.89069923,2457.5,2456.4,2.84962]
[1725248907814,2.3877,2457.1,2456.4,2.84962]
[1725248908194,2.3877,2457.1,2456.2,21.50543306]
[1725248908195,2.84919,2456.9,2456.3,2.8497]
[1725248908455,0.23877,2457.0,2456.4,5.6993]
[1725248908612,0.23877,2457.0,2456.4,2.84961]
[1725248909303,5.23662,2457.1,2456.4,2.84961]
[1725248909753,2.3877,2457.1,2456.6,2.84939]
[1725248909958,2.3877,2457.1,2456.7,2.84934]
[1725248911149,0.42627606,2457.0,2456.7,2.84934]
[1725248912649,0.42627606,2457.0,2456.6,2.84939]
[1725248913667,0.42627606,2457.0,2456.4,2.84962]
[1725248913879,0.42627606,2457.0,2456.5,0.834966]
[1725248914370,0.42627606,2457.0,2456.6,2.84943]
[1725248917475,0.42627606,2457.0,2456.7,2.84933]
[1725248918341,0.42627606,2457.0,2456.6,2.84943]
[1725248919833,0.42627606,2457.0,2456.6,6.3522146]
[1725248920088,0.42627606,2457.0,2456.6,2.84938]
[1725248920437,0.42627606,2457.0,2456.5,0.834966]
[1725248920648,0.42627606,2457.0,2456.2,12.08887558]
[1725248920649,2.355,2456.9,2456.2,6.66694933]
[1725248920849,2.355,2456.5,2456.2,6.28556306]
[1725248921094,2.355,2456.8,2456.2,2.84992]
[1725248921603,2.355,2456.8,2456.4,2.84969]
[1725248921753,2.355,2456.8,2456.4,2.84962]
[1725248922099,3.0,2456.9,2456.4,2.84962]
[1725248922100,3.0,2456.9,2456.4,2.8496]
[1725248923506,3.0,2456.9,2456.5,3.3995]
[1725248924796,2.84923,2456.8,2456.2,2.84989]
[1725248925093,3.86301961,2456.9,2456.2,2.84989]
[1725248925094,9.56141961,2456.9,2456.2,2.84989]
[1725248925254,1.23426957,2456.8,2456.2,2.84989]
[1725248925866,4.08352957,2456.8,2456.2,2.84989]
[1725248926453,0.4263842,2456.7,2456.2,2.84989]
[1725248929286,0.4263842,2456.7,2456.4,2.84968]
[1725248929888,0.4263842,2456.7,2456.2,2.93125639]
[1725248930083,0.4263842,2456.7,2456.2,3.80471828]
[1725248930287,0.4263842,2456.7,2456.2,3.72330189]
[1725248931328,0.4263842,2456.7,2456.2,2.84984]
[1725248932438,0.4263842,2456.7,2456.2,2.84856199]
[1725248933507,3.2757642,2456.7,2456.0,5.70015]
[1725248933706,3.42666642,2456.6,2456.1,0.55]
[1725248933915,3.42666642,2456.6,2456.0,2.85006]
[1725248935304,0.57710642,2456.6,2456.0,2.85006]
[1725248935500,3.2757642,2456.7,2456.0,2.85006]
[1725248935699,2.84947,2456.6,2456.0,2.85006]
[1725248936005,3.2757642,2456.7,2456.0,5.70014]
[1725248938248,3.2757642,2456.7,2456.1,2.85003]
[1725248938597,6.1252042,2456.7,2456.0,2.85006]
[1725248938788,0.57710642,2456.6,2456.0,2.85006]
[1725248939623,0.57710642,2456.6,2456.0,5.70013]
[1725248939918,0.57710642,2456.6,2456.1,2.85003]
[1725248940803,0.4263842,2456.7,2456.3,2.84977]
[1725248941163,0.4263842,2456.7,2456.1,2.84996]
[1725248941436,0.4263842,2456.7,2455.9,6.15934252]
[1725248941437,3.2758042,2456.7,2456.0,2.85009]
[1725248942442,5.69885,2456.7,2456.0,2.85009]
[1725248942814,2.84942,2456.7,2456.1,2.85004]
[1725248943011,3.668809,2456.7,2456.1,2.85004]
[1725248944148,0.819389,2456.7,2456.1,2.85004]
[1725248944312,8.1214,2457.0,2456.3,2.84979]
[1725248944651,8.1214,2457.0,2456.3,2.93120469]
[1725248945146,3.27532366,2457.1,2456.3,2.93120469]
[1725248945147,3.27532366,2457.1,2456.5,2.84957]
[1725248945441,8.46984094,2457.3,2456.7,2.84935]
[1725248946097,5.62111094,2457.3,2456.7,2.84935]
[1725248946299,8.46986094,2457.3,2456.7,2.84935]
[1725248946646,3.0,2457.2,2456.7,2.84935]
[1725248946852,1.14698609,2457.1,2456.7,2.84935]
[1725248947945,1.14698609,2457.1,2456.5,2.84949]
[1725248948142,1.14698609,2457.1,2456.6,0.55]
[1725248948580,2.2724,2457.0,2456.4,6.28556306]
[1725248948791,2.2724,2456.8,2456.4,6.28556306]
[1725248949651,2.84944,2456.7,2456.4,6.28556306]
[1725248949837,2.84952,2456.6,2456.4,6.28556306]
[1725248952671,2.84958,2456.5,2455.9,6.28556306]
[1725248952993,2.85023,2456.0,2455.7,6.28556306]
[1725248953169,2.85023,2456.0,2455.4,8.74716306]
[1725248953373,5.70049,2456.0,2455.4,8.74716306]
[1725248953751,2.85023,2456.0,2455.4,6.28556306]
[1725248954149,2.85023,2456.0,2455.4,9.13639306]
[1725248954797,2.85023,2456.0,2455.5,0.55]
[1725248954951,6.30911252,2456.4,2455.5,0.55]
[1725248954952,8.23113,2456.4,2455.7,2.8505]
[1725248955151,3.0,2456.3,2455.7,2.4616]
[1725248955376,3.0,2456.3,2455.8,0.55]
[1725248956157,6.339192,2456.4,2455.8,0.55]
[1725248956158,3.957792,2456.4,2455.8,0.55]
[1725248956357,2.3814,2457.0,2456.3,5.77071252]
[1725248956558,2.2577,2457.3,2456.8,2.84913]
[1725248956801,2.84852,2457.5,2456.8,2.84913]
[1725248956947,0.284852,2457.4,2456.8,2.84913]
[1725248957143,0.284852,2457.4,2456.4,1.12707125]
[1725248957144,0.284852,2457.4,2456.4,3.97673125]
[1725248957385,2.8489,2457.1,2456.5,2.84957]
[1725248957597,0.28489,2457.0,2456.6,0.55]
[1725248957795,2.8489,2457.1,2456.4,3.39966]
[1725248958298,2.8489,2457.1,2456.5,2.84957]
[1725248958494,2.84867,2457.3,2456.6,0.55]
[1725248958700,2.84877,2457.2,2456.6,0.55]
[1725248958991,3.4469992,2457.2,2456.6,0.55]
[1725248959553,5.19959,2457.1,2456.6,0.55]
[1725248959864,5.19959,2457.1,2456.5,0.55]
[1725248960779,5.19959,2457.1,2456.4,0.55]
[1725248960962,5.19959,2457.1,2456.3,0.55]
[1725248960963,2.84913,2456.9,2456.3,0.55]
[1725248964454,5.69836,2456.9,2456.3,0.55]
[1725248964951,2.84927,2456.8,2456.3,0.55]
[1725248965147,3.77708819,2456.8,2456.3,0.55]
[1725248966082,0.92781819,2456.8,2456.3,0.55]
[1725248966283,2.84913,2456.9,2456.3,0.55]
[1725248967027,2.84935,2456.7,2456.2,0.55]
[1725248967882,3.57978192,2457.0,2456.1,6.28556306]
[1725248968130,2.84993,2456.2,2456.1,6.28556306]
[1725248968434,2.84993,2456.2,2455.6,2.85059]
[1725248968582,5.69955,2456.4,2455.7,2.85049]
[1725248969014,2.84992,2456.3,2455.7,2.85049]
[1725248969333,2.84977,2456.4,2455.7,2.85049]
[1725248969514,2.84993,2456.2,2455.6,1.48047656]
[1725248969902,2.84993,2456.2,2455.6,4.33108656]
[1725248970099,2.84977,2456.4,2455.7,2.85049]
[1725248970285,2.84977,2456.4,2455.7,6.15960252]
[1725248970625,2.84993,2456.2,2455.7,3.30911252]
[1725248970932,2.84993,2456.2,2455.5,12.44533558]
[1725248971089,2.85005,2456.1,2455.6,0.55]
[1725248971931,3.4485457,2456.1,2455.6,0.55]
[1725248972687,2.85017,2456.0,2455.5,6.28556306]
[1725248974199,2.85017,2456.0,2455.3,9.01095252]
[1725248974701,3.27591349,2456.6,2456.0,2.85005]
[1725248974905,3.0,2456.5,2456.1,0.285005]
[1725248975092,6.12546349,2456.6,2456.0,2.85005]
[1725248975407,2.84981,2456.3,2455.8,6.28556306]
[1725248975917,5.69972,2456.3,2455.8,6.28556306]
[1725248976429,2.84995,2456.2,2455.8,6.28556306]
[1725248977127,2.84981,2456.3,2455.8,6.28556306]
[1725248977492,5.69972,2456.3,2455.8,6.28556306]
[1725248977688,6.41073529,2456.3,2455.8,6.28556306]
[1725248978093,3.56082529,2456.3,2455.8,6.28556306]
[1725248978294,6.41072529,2456.3,2455.8,6.28556306]
[1725248978499,2.84993,2456.2,2455.8,6.28556306]
[1725248979110,3.56082529,2456.3,2455.8,6.28556306]
[1725248979447,6.41072529,2456.3,2455.8,6.28556306]
[1725248979627,3.56082529,2456.3,2455.8,6.28556306]
[1725248979827,2.84996,2456.2,2455.8,6.28556306]
[1725248980137,2.85011,2456.1,2455.8,6.28556306]
[1725248980339,2.85011,2456.1,2455.6,2.2937]
[1725248980643,2.85011,2456.1,2455.4,9.13636306]
[1725248980644,2.85018,2456.0,2455.4,6.28556306]
[1725248980944,2.85036,2455.9,2455.4,6.28556306]
[1725248982538,2.8504,2455.8,2455.4,6.28556306]
[1725248982738,3.420458,2455.8,2455.4,6.28556306]
[1725248983044,2.85052,2455.7,2455.4,6.28556306]
[1725248983410,2.8504,2455.8,2455.4,6.28556306]
[1725248986203,2.8504,2455.8,2455.2,20.95228252]
[1725248986404,2.8504,2455.8,2455.3,0.55]
[1725248990733,5.70088,2455.8,2455.3,0.55]
[1725248990930,3.27678625,2455.8,2455.3,0.55]
[1725248991645,0.42638625,2455.8,2455.6,6.15964252]
[1725248991860,2.84972,2456.4,2455.8,2.85038]
[1725248992001,2.84972,2456.4,2455.9,0.55]
[1725248992703,5.15227,2456.5,2455.9,0.55]
[1725248994238,6.09182,2456.7,2456.1,2.85]
[1725248994403,3.0,2456.6,2456.1,2.85]
[1725248994598,2.84941,2456.7,2456.1,2.85]
[1725248995871,2.84962,2456.5,2455.9,0.55]
[1725248996049,0.284962,2456.4,2455.9,0.55]
[1725248996234,0.284962,2456.4,2455.8,0.55]
[1725248996413,5.10172,2456.5,2455.8,0.55]
[1725248997101,2.2521,2456.5,2455.7,12.38746301]
[1725248997272,2.2521,2456.5,2455.7,6.28556306]
[1725248997419,2.85005,2456.1,2455.7,6.28556306]
[1725248997622,2.85005,2456.1,2455.5,6.54253995]
[1725248997927,2.85026,2456.0,2455.5,0.38268743]
[1725248998129,2.85031,2455.9,2455.4,18.65556306]
[1725249000982,2.85031,2455.9,2455.4,6.28556306]
[1725249001370,5.10218,2456.1,2455.5,0.55]
[1725249001563,5.84983,2456.3,2455.6,2.8506]
[1725249001897,8.69974,2456.3,2455.6,4.19658393]
[1725249002103,2.84993,2456.2,2455.6,4.19658393]
[1725249002458,5.84983,2456.3,2455.6,4.19658393]
[1725249002459,8.69973,2456.3,2455.6,4.19658393]
[1725249002799,6.692224,2456.3,2455.6,4.19658393]
[1725249004010,2.85001,2456.2,2455.6,4.19658393]
[1725249004159,3.692224,2456.3,2455.6,4.19658393]
[1725249005112,3.692224,2456.3,2455.5,0.55]
[1725249005113,2.85014,2456.1,2455.5,0.55]
[1725249005408,2.8504,2455.8,2455.4,6.28556306]
[1725249007011,2.85038,2455.9,2455.3,2.83668249]
[1725249007228,2.85038,2455.9,2455.3,6.14579501]
[1725249007509,2.4826,2456.0,2455.4,3.78365249]
[1725249007683,5.866057,2456.0,2455.4,3.78365249]
[1725249008573,5.866057,2456.0,2455.4,0.38288249]
[1725249008767,5.70095,2455.8,2455.4,0.38288249]
[1725249009008,5.70095,2455.8,2455.3,2.83668249]
[1725249009725,5.70096,2455.8,2455.3,2.83668249]
[1725249010087,2.3939,2455.7,2455.3,0.38288249]
[1725249010303,2.85098,2455.3,2455.1,6.28556306]
[1725249010520,2.8513,2455.1,2454.6,6.28556306]
[1725249010668,2.85144,2454.9,2454.5,2.70580668]
[1725249011039,2.85124,2455.1,2454.4,0.38281216]
[1725249011231,3.0,2455.4,2454.8,2.85152]
[1725249011365,5.33999,2455.5,2454.7,2.85159]
[1725249011569,2.85106,2455.3,2454.6,0.41106712]
[1725249011812,2.85116,2455.2,2454.5,8.99316468]
[1725249012014,2.85106,2455.3,2454.6,2.93325414]
[1725249012197,2.85106,2455.3,2454.6,3.87079532]
[1725249012407,5.33997,2455.5,2454.5,8.99316468]
[1725249012408,2.85128,2455.1,2454.5,5.68405216]
[1725249012598,2.85128,2455.1,2454.5,5.30124]
[1725249013975,5.70258,2455.1,2454.5,5.30124]
[1725249014177,5.70258,2455.1,2454.5,2.4494]
[1725249014178,2.85135,2455.0,2454.5,2.4494]
[1725249014428,2.85144,2454.9,2454.5,2.4494]
[1725249014583,2.85144,2454.9,2454.3,11.56082306]
[1725249015531,5.70298,2454.9,2454.3,11.56082306]
[1725249015735,2.85144,2454.9,2454.3,11.56082306]
[1725249016248,2.85144,2454.9,2454.3,13.33305162]
[1725249017969,3.0,2455.3,2454.4,6.24260368]
[1725249017970,8.11361,2455.3,2454.4,6.24260368]
[1725249018261,5.11361,2455.3,2454.6,6.16078252]
[1725249018424,5.11361,2455.3,2454.7,0.55]
[1725249019127,5.11339,2455.5,2454.8,2.93301951]
[1725249019335,3.0,2455.4,2454.8,2.85155]
[1725249019515,3.511339,2455.4,2454.8,2.85155]
[1725249020032,6.362279,2455.4,2454.8,2.85155]
[1725249020420,2.85098,2455.3,2454.7,3.0211]
[1725249020863,2.85057,2455.7,2455.0,2.85131]
[1725249021154,2.85057,2455.7,2454.9,5.65341252]
[1725249021155,2.85013,2456.1,2455.5,2.85071]
[1725249021316,2.85017,2456.0,2455.4,2.9322825]
[1725249021522,2.67780332,2456.2,2455.1,0.55]
[1725249021523,2.2514,2455.8,2455.1,0.55]
[1725249022048,2.8506,2455.7,2455.1,0.55]
[1725249022492,2.85083,2455.5,2454.8,2.85152]
[1725249022790,3.420973,2455.5,2454.9,0.55]
[1725249024678,2.85088,2455.4,2454.8,0.55]
[1725249025600,3.4780653,2455.4,2454.8,0.55]
[1725249025807,2.85083,2455.5,2454.9,3.30911252]
[1725249025990,8.1018,2455.8,2455.1,3.30911252]
[1725249026199,3.0,2455.8,2455.2,0.63926741]
[1725249026395,3.0,2455.8,2455.3,0.55]
[1725249026599,5.8504,2455.8,2455.3,0.55]
[1725249027016,2.85064,2455.6,2455.1,3.30911252]
[1725249027226,2.85064,2455.6,2455.0,5.30332]
[1725249027423,2.85074,2455.5,2454.9,3.30911252]
[1725249027632,3.135954,2455.4,2454.8,5.30359]
[1725249027931,3.135954,2455.4,2454.9,0.55]
[1725249028756,0.285074,2455.4,2454.9,0.55]
[1725249029239,3.136024,2455.4,2454.9,0.55]
[1725249029423,3.4496564,2455.3,2454.9,0.55]
[1725249030049,3.4496564,2455.3,2454.6,3.30911252]
[1725249030050,2.85121,2455.1,2454.6,3.30911252]
[1725249030692,5.8799564,2455.3,2454.6,6.16089252]
[1725249030890,0.58799564,2455.2,2454.5,2.2817]
[1725249031118,0.58799564,2455.2,2454.5,5.59081252]
[1725249031326,2.85128,2455.1,2454.5,5.59081252]
[1725249031831,2.85128,2455.1,2454.6,0.06236499]
[1725249033544,2.85102,2455.3,2454.6,0.06236499]
[1725249033837,2.85102,2455.3,2454.7,3.30911252]
[1725249033990,2.85055,2455.7,2454.9,2.4315]
[1725249034188,2.85055,2455.7,2455.0,0.55]
[1725249034388,2.85055,2455.7,2455.0,0.61050915]
[1725249035245,2.85063,2455.6,2455.0,3.46173915]
[1725249035395,2.85055,2455.7,2455.0,4.05109207]
[1725249035591,5.70117,2455.7,2455.0,4.05109207]
[1725249035821,2.85055,2455.7,2455.0,6.90232207]
[1725249036024,2.85055,2455.7,2455.0,4.05109207]
[1725249036630,5.70116,2455.7,2455.0,4.05109207]
[1725249038343,2.85055,2455.7,2455.0,4.05109207]
[1725249038501,5.70115,2455.7,2455.0,4.05109207]
[1725249039238,2.85055,2455.7,2455.0,4.05109207]
[1725249041231,2.85055,2455.7,2455.1,2.8512]
[1725249041546,2.85055,2455.7,2455.2,0.06008463]
[1725249041704,4.675838,2455.7,2455.2,0.06008463]
[1725249042103,4.675838,2455.7,2455.0,6.92325055]
[1725249042443,4.675838,2455.7,2455.1,0.06014508]
[1725249044144,4.675838,2455.7,2455.1,2.91133508]
[1725249044354,4.675838,2455.7,2455.1,0.06014508]
[1725249045212,2.85055,2455.7,2455.1,4.18811219]
[1725249045445,2.85055,2455.7,2455.2,2.3071]
[1725249045802,2.85055,2455.7,2455.3,0.05969891]
[1725249045998,5.70116,2455.7,2455.3,0.05969891]
[1725249046227,5.70116,2455.7,2455.2,2.3071]
[1725249046228,2.85063,2455.6,2455.2,2.3071]
[1725249046434,2.85074,2455.5,2455.4,0.05963847]
[1725249046705,2.85085,2455.4,2454.9,6.28556306]
[1725249046903,3.60015361,2455.7,2454.9,6.28556306]
[1725249046904,2.85119,2455.2,2454.9,6.28556306]
[1725249047151,2.85133,2455.0,2454.6,6.28556306]
[1725249047552,2.85156,2454.8,2454.6,6.28556306]
[1725249047851,0.285119,2455.2,2454.0,2.3817]
[1725249047852,2.3482,2454.9,2454.0,2.3817]
[1725249048003,2.85188,2454.6,2454.0,2.3817]
[1725249048203,2.85202,2454.4,2454.0,2.3817]
[1725249048438,2.85202,2454.4,2453.7,5.25003]
[1725249048674,2.85202,2454.4,2453.7,5.820606]
[1725249048874,2.85214,2454.3,2453.7,2.967876]
[1725249049690,2.85191,2454.5,2453.7,2.967876]
[1725249049844,3.422273,2454.5,2453.7,5.820676]
[1725249050172,3.422273,2454.5,2453.8,0.55]
[1725249050357,2.85204,2454.4,2453.7,2.967876]
[1725249050542,3.422273,2454.5,2453.7,5.820696]
[1725249050745,3.422273,2454.5,2453.8,3.4347696]
[1725249051142,2.3418,2454.6,2453.9,6.16169252]
[1725249051343,3.0,2454.6,2454.1,2.4295]
[1725249051561,5.85186,2454.6,2454.1,2.4295]
[1725249051746,6.722214,2454.6,2454.1,2.4295]
[1725249052535,3.870354,2454.6,2454.1,2.4295]
[1725249053441,3.870354,2454.6,2453.9,6.16168252]
[1725249053442,6.722144,2454.6,2453.9,6.16168252]
[1725249053676,5.85179,2454.6,2453.9,6.24317706]
[1725249054659,2.85179,2454.6,2453.9,6.24317706]
[1725249054865,8.536893,2454.9,2454.2,5.31254]
[1725249055067,3.0,2454.8,2454.2,2.4603]
[1725249055269,5.85155,2454.8,2454.2,2.4603]
[1725249055640,5.85155,2454.8,2454.3,0.05288658]
[1725249056049,6.961881,2454.8,2454.3,0.05288658]
[1725249056253,5.85155,2454.8,2454.3,0.05288658]
[1725249056637,2.85167,2454.7,2454.3,0.05288658]
[1725249056842,2.85202,2454.4,2454.3,0.05288658]
[1725249057040,6.528092,2454.4,2454.3,0.05288658]
[1725249057291,2.85235,2454.2,2453.7,6.28556306]
[1725249057492,2.85235,2454.2,2453.5,15.22302]
[1725249057984,2.85244,2454.1,2453.5,15.22302]
[1725249058184,2.85251,2454.0,2453.5,12.37]
[1725249058560,2.85268,2453.9,2453.4,6.28556306]
[1725249058896,3.7190929,2453.9,2453.4,6.28556306]
[1725249059657,2.85268,2453.9,2453.4,6.28556306]
[1725249059927,5.85219,2454.3,2453.6,3.30911252]
[1725249060187,2.85227,2454.2,2453.7,2.4603]
[1725249060540,3.0,2454.1,2453.7,2.4603]
[1725249060868,3.0,2454.1,2453.4,9.13874306]
[1725249061051,3.0,2454.1,2453.5,4.31691431]